bitfinex/quotes_BTCUSD_20250127
["timestamp","ask_amount","ask_price","bid_price","bid_amount"]
[1737955920463,0.62601306,100450.0,100440.0,0.1494837]
[1737955921944,0.52866577,100450.0,100440.0,0.1494837]
[1737955923259,0.51986577,100450.0,100440.0,0.1494837]
[1737955925045,0.61986577,100450.0,100440.0,0.42959659]
[1737955925551,0.61986577,100450.0,100440.0,0.67694388]
[1737955925738,0.51986577,100450.0,100440.0,0.75972149]
[1737955925948,0.51986577,100450.0,100440.0,0.81373592]
[1737955927207,0.51886577,100450.0,100440.0,0.81373592]
[1737955927425,0.51886577,100450.0,100440.0,0.70984067]
[1737955927669,0.51786577,100450.0,100440.0,0.67882624]
[1737955927883,0.51786577,100450.0,100440.0,0.68683033]
[1737955928116,0.51786577,100450.0,100440.0,0.54847895]
[1737955928350,0.61786577,100450.0,100440.0,0.2945837]
[1737955928553,0.61786577,100450.0,100440.0,0.2472837]
[1737955929660,0.61986577,100450.0,100440.0,0.2472837]
[1737955930759,0.62386577,100450.0,100440.0,0.2472837]
[1737955930966,0.61786577,100450.0,100440.0,0.2472837]
[1737955931146,0.61886577,100450.0,100440.0,0.2472837]
[1737955931401,0.61986577,100450.0,100440.0,0.2472837]
[1737955932717,0.71721306,100450.0,100440.0,0.0001417]
[1737955932920,0.71721306,100450.0,100440.0,0.1494837]
[1737955933894,0.61986577,100450.0,100440.0,0.1494837]
[1737955934528,0.61986577,100450.0,100440.0,0.27337895]
[1737955935014,0.61986577,100450.0,100440.0,0.1694837]
[1737955935701,0.61986577,100450.0,100440.0,0.40847895]
[1737955935875,0.51986577,100450.0,100440.0,1.08012149]
[1737955936085,0.51990646,100450.0,100440.0,1.08012149]
[1737955936266,0.51990646,100450.0,100440.0,1.10312149]
[1737955936860,0.51990646,100450.0,100440.0,1.64472149]
[1737955937124,0.51990646,100450.0,100440.0,1.67577257]
[1737955937641,0.51890646,100450.0,100440.0,1.67577257]
[1737955938254,0.51790646,100450.0,100440.0,1.67577257]
[1737955940709,0.51790646,100450.0,100440.0,1.68616198]
[1737955941494,0.51790646,100450.0,100440.0,1.6551109]
[1737955941903,0.51790646,100450.0,100440.0,1.68611678]
[1737955942106,0.51790646,100450.0,100440.0,0.82411678]
[1737955942473,0.51790646,100450.0,100440.0,0.7931109]
[1737955945862,0.51790646,100450.0,100440.0,0.7831109]
[1737955946106,0.51790646,100450.0,100440.0,0.7931109]
[1737955947373,0.51790646,100450.0,100440.0,0.68921565]
[1737955947579,0.51790646,100450.0,100440.0,0.66621565]
[1737955948005,0.51790646,100450.0,100440.0,1.55121565]
[1737955953694,0.51790646,100450.0,100440.0,1.54121565]
[1737955954069,0.51790646,100450.0,100440.0,0.68921565]
[1737955956148,0.51790646,100450.0,100440.0,0.7931109]
[1737955957100,0.51790646,100450.0,100440.0,0.82413156]
[1737955959044,0.51790646,100450.0,100440.0,0.72023631]
[1737955959665,0.51790646,100450.0,100440.0,0.82413156]
[1737955959874,0.51790646,100450.0,100440.0,1.68613156]
[1737955961247,0.51790646,100450.0,100440.0,1.58223631]
[1737955962877,0.51790646,100450.0,100440.0,1.55121565]
[1737955963087,0.51790646,100450.0,100440.0,1.58225466]
[1737955963338,0.51790646,100450.0,100440.0,1.55121565]
[1737955964486,0.51790646,100450.0,100440.0,1.58226185]
[1737955965134,0.51790646,100450.0,100440.0,1.55121565]
[1737955965263,0.51790646,100450.0,100440.0,1.582262]
[1737955965886,0.51790646,100450.0,100440.0,0.720262]
[1737955966087,0.51790646,100450.0,100440.0,0.672962]
[1737955967038,0.61790646,100450.0,100440.0,0.31987311]
[1737955967208,0.61790646,100450.0,100440.0,0.32987311]
[1737955968688,0.61790646,100450.0,100440.0,0.43376836]
[1737955969561,0.61790646,100450.0,100440.0,0.54111565]
[1737955969969,0.61790646,100450.0,100440.0,0.57220935]
[1737955970302,0.61790646,100450.0,100440.0,0.54111565]
[1737955970501,0.61790646,100450.0,100440.0,0.5722204]
[1737955971760,0.61790646,100450.0,100440.0,0.8926204]
[1737955973143,0.61737883,100450.0,100440.0,0.8926204]
[1737955973866,0.61737883,100450.0,100440.0,0.78872515]
[1737955974266,0.61737883,100450.0,100440.0,0.7576204]
[1737955974845,0.61709969,100450.0,100440.0,0.7576204]
[1737955975419,0.61709969,100450.0,100440.0,0.86151565]
[1737955978851,0.51709969,100450.0,100440.0,1.09630687]
[1737955981972,0.51709969,100450.0,100440.0,1.09730687]
[1737955982163,0.51809969,100450.0,100440.0,1.09730687]
[1737955982377,0.51709969,100450.0,100440.0,1.09730687]
[1737955982588,0.51709969,100450.0,100440.0,1.09630687]
[1737955982797,0.51709969,100450.0,100440.0,1.11848021]
[1737955983470,0.41754969,100450.0,100440.0,1.70588021]
[1737955983694,0.3941541,100450.0,100440.0,2.21441741]
[1737955983901,0.39321833,100450.0,100440.0,2.20441741]
[1737955984122,0.39321833,100450.0,100440.0,1.81966741]
[1737955984332,0.31357833,100450.0,100440.0,1.81966741]
[1737955984559,0.29565492,100450.0,100440.0,1.83966741]
[1737955984773,0.29366833,100450.0,100440.0,1.83966741]
[1737955985197,0.19411833,100450.0,100440.0,1.83966741]
[1737955985837,0.19411833,100450.0,100440.0,1.81966741]
[1737955986298,0.19411833,100450.0,100440.0,1.83966741]
[1737955986506,0.19610797,100450.0,100440.0,1.83966741]
[1737955986922,0.19411833,100450.0,100440.0,1.83966741]
[1737955987127,0.05474833,100450.0,100440.0,1.83966741]
[1737955987335,0.01492833,100450.0,100440.0,1.83966741]
[1737955987568,0.51270833,100450.0,100440.0,1.83966741]
[1737955988202,0.51270833,100450.0,100440.0,1.81966741]
[1737955988203,0.45327569,100450.0,100440.0,1.81966741]
[1737955988382,0.41345569,100450.0,100440.0,1.83966741]
[1737955989232,0.33381569,100450.0,100440.0,1.83966741]
[1737955989448,0.22027568,100450.0,100440.0,1.83966741]
[1737955990034,0.20036568,100450.0,100440.0,1.83966741]
[1737955990553,0.20036568,100450.0,100440.0,1.92913007]
[1737955990554,0.12072568,100450.0,100440.0,1.92913007]
[1737955991135,0.06099568,100450.0,100440.0,1.81522507]
[1737955991482,0.02117568,100450.0,100440.0,2.65694007]
[1737955991907,0.00029758,100470.0,100460.0,0.159313]
[1737955992112,5.8e-07,100470.0,100460.0,2.26522864]
[1737955992239,5.8e-07,100470.0,100460.0,1.68015529]
[1737955992446,0.49769058,100470.0,100460.0,1.68011803]
[1737955992644,0.49769058,100470.0,100460.0,1.97800503]
[1737955992867,0.49769058,100470.0,100460.0,1.94187203]
[1737955993051,0.49769058,100470.0,100460.0,1.86010503]
[1737955993606,0.39816058,100470.0,100460.0,1.82908273]
[1737955993771,0.39816058,100470.0,100460.0,1.83308273]
[1737955994048,0.39816058,100470.0,100460.0,1.83408273]
[1737955994406,0.37825458,100470.0,100460.0,1.83008273]
[1737955994606,0.37825458,100470.0,100460.0,1.86007111]
[1737955994804,0.37925458,100470.0,100460.0,1.86807111]
[1737955995522,0.37925458,100470.0,100460.0,0.97508273]
[1737955995773,0.31953658,100470.0,100460.0,1.00606068]
[1737955995928,0.27972458,100470.0,100460.0,1.00606068]
[1737955996111,0.25981858,100470.0,100460.0,1.00606068]
[1737955996311,0.18019458,100470.0,100460.0,1.00606068]
[1737955996505,0.18019458,100470.0,100460.0,0.98518627]
[1737955996712,0.19873458,100470.0,100460.0,0.98518627]
[1737955997115,0.19873458,100470.0,100460.0,1.0055038]
[1737955997316,0.09920458,100470.0,100460.0,1.0055038]
[1737955997515,0.09920458,100470.0,100460.0,0.9507378]
[1737955999143,0.09920458,100470.0,100460.0,0.8255168]
[1737956000211,0.10121527,100470.0,100460.0,0.8255168]
[1737956000419,0.10121527,100470.0,100460.0,0.8256583]
[1737956000739,0.10151242,100470.0,100460.0,0.67434058]
[1737956001522,0.10151242,100470.0,100460.0,1.52634058]
[1737956001722,0.10151242,100470.0,100460.0,1.43104058]
[1737956001950,0.10151242,100470.0,100460.0,1.41072305]
[1737956002117,0.10151242,100470.0,100460.0,1.43372305]
[1737956003032,0.17821242,100470.0,100460.0,1.42372305]
[1737956003234,0.27821242,100470.0,100460.0,1.29690533]
[1737956003457,0.27821242,100470.0,100460.0,1.30690533]
[1737956003666,0.27821242,100470.0,100460.0,1.43372305]
[1737956004232,0.27821242,100470.0,100460.0,1.43172305]
[1737956004623,0.27721242,100470.0,100460.0,1.42672305]
[1737956005085,0.10051242,100470.0,100460.0,1.43072305]
[1737956005493,0.10051242,100470.0,100460.0,1.61254077]
[1737956005850,0.09850173,100470.0,100460.0,1.61254077]
[1737956006510,0.09850173,100470.0,100460.0,1.60254077]
[1737956006667,0.09850173,100470.0,100460.0,1.50872305]
[1737956007027,0.10051711,100470.0,100460.0,1.61254077]
[1737956007382,0.10051711,100470.0,100460.0,1.64351272]
[1737956010880,0.09850173,100470.0,100460.0,1.64351272]
[1737956012204,7.3e-07,100470.0,100460.0,1.66351272]
[1737956012329,7.3e-07,100470.0,100460.0,1.66251272]
[1737956012532,7.3e-07,100470.0,100460.0,1.66451272]
[1737956013042,0.00025831,100480.0,100470.0,0.322298]
[1737956013262,3.1e-07,100480.0,100470.0,0.81325268]
[1737956013470,3.1e-07,100480.0,100470.0,1.67525268]
[1737956014234,3.1e-07,100480.0,100470.0,1.67630201]
[1737956014435,0.49764031,100480.0,100470.0,1.67630201]
[1737956014656,0.49764031,100480.0,100470.0,1.67930201]
[1737956014858,0.49999571,100480.0,100470.0,1.67930201]
[1737956015814,0.51853571,100480.0,100470.0,1.67930201]
[1737956016607,0.49863171,100480.0,100470.0,1.67930201]
[1737956017009,0.41901571,100480.0,100470.0,0.81730201]
[1737956017239,0.37920771,100480.0,100470.0,0.81730201]
[1737956017435,0.35930371,100480.0,100470.0,0.81730201]
[1737956018169,0.11233013,100480.0,100470.0,2.14480601]
[1737956018374,0.08532131,100480.0,100470.0,1.41355801]
[1737956019059,1e-08,100480.0,100470.0,1.41255801]
[1737956019245,1e-08,100480.0,100470.0,0.83730201]
[1737956019444,1e-08,100480.0,100470.0,0.84430201]
[1737956019642,0.0001416,100500.0,100490.0,0.427368]
[1737956019852,0.0001416,100500.0,100490.0,1.62532268]
[1737956020545,0.002497,100500.0,100490.0,1.62532268]
[1737956020953,0.003497,100500.0,100490.0,1.63132268]
[1737956021351,0.501037,100500.0,100490.0,1.63132268]
[1737956022089,0.501037,100500.0,100490.0,1.63332268]
[1737956022425,0.501037,100500.0,100490.0,1.62332268]
[1737956022626,0.501037,100500.0,100490.0,1.52725073]
[1737956023876,0.501037,100500.0,100490.0,1.50725073]
[1737956024096,0.501037,100500.0,100490.0,1.40043301]
[1737956024550,0.501037,100500.0,100490.0,1.50425073]
[1737956024763,0.501037,100500.0,100490.0,1.52725073]
[1737956025134,0.46345226,100500.0,100490.0,1.81481873]
[1737956025739,0.47914474,100500.0,100490.0,1.55824523]
[1737956025986,0.47914474,100500.0,100490.0,1.52725073]
[1737956026167,0.47914474,100500.0,100490.0,1.42343301]
[1737956026341,0.47914474,100500.0,100490.0,1.42053538]
[1737956026551,0.47914474,100500.0,100490.0,1.44353538]
[1737956027739,0.60674474,100500.0,100490.0,0.64777037]
[1737956027949,0.60674474,100500.0,100490.0,0.477668]
[1737956028621,0.60674474,100500.0,100490.0,0.475668]
[1737956029167,0.70674474,100500.0,100490.0,0.476668]
[1737956029368,0.70674474,100500.0,100490.0,0.57448572]
[1737956029573,0.70674474,100500.0,100490.0,0.82183301]
[1737956029808,0.60674474,100500.0,100490.0,0.84183301]
[1737956030006,0.60674474,100500.0,100490.0,0.84083301]
[1737956030178,0.52634474,100500.0,100490.0,0.87383301]
[1737956030386,0.52834474,100500.0,100490.0,0.87383301]
[1737956030592,0.52634474,100500.0,100490.0,0.87383301]
[1737956030964,0.52634474,100500.0,100490.0,0.87483301]
[1737956031761,0.52734474,100500.0,100490.0,0.87483301]
[1737956032200,0.52634474,100500.0,100490.0,0.87483301]
[1737956032407,0.52412948,100500.0,100490.0,0.87483301]
[1737956034041,0.52412948,100500.0,100490.0,0.86483301]
[1737956034415,0.52412948,100500.0,100490.0,0.76101529]
[1737956034621,0.52412948,100500.0,100490.0,0.640668]
[1737956036058,0.69912948,100500.0,100490.0,0.470668]
[1737956036267,0.69912948,100500.0,100490.0,0.47096515]
[1737956036582,0.69927098,100500.0,100490.0,0.47096515]
[1737956036929,0.59927098,100500.0,100490.0,0.47096515]
[1737956037111,0.59927098,100500.0,100490.0,0.46996515]
[1737956037247,0.52427098,100500.0,100490.0,0.85113016]
[1737956037456,0.52727098,100500.0,100490.0,0.85113016]
[1737956038475,0.52827098,100500.0,100490.0,0.85113016]
[1737956038811,0.52527098,100500.0,100490.0,0.85113016]
[1737956039023,0.52427098,100500.0,100490.0,0.71731244]
[1737956039251,0.52427098,100500.0,100490.0,0.72731244]
[1737956039252,0.62727098,100500.0,100490.0,0.72731244]
[1737956039659,0.62427098,100500.0,100490.0,0.57731244]
[1737956040509,0.62427098,100500.0,100490.0,0.57831244]
[1737956040708,0.62427098,100500.0,100490.0,0.57731244]
[1737956040916,0.62527098,100500.0,100490.0,0.46996515]
[1737956041064,0.70027098,100500.0,100490.0,0.46996515]
[1737956041456,0.69927098,100500.0,100490.0,0.46996515]
[1737956041659,0.70027098,100500.0,100490.0,0.46996515]
[1737956041883,0.70027098,100500.0,100490.0,0.68113016]
[1737956042085,0.62827098,100500.0,100490.0,0.68113016]
[1737956042684,0.62827098,100500.0,100490.0,0.55113016]
[1737956042888,0.58107098,100500.0,100490.0,0.55113016]
[1737956043021,0.57807098,100500.0,100490.0,0.55113016]
[1737956043221,0.58107098,100500.0,100490.0,0.55113016]
[1737956043522,0.57807098,100500.0,100490.0,0.55113016]
[1737956043871,0.57807098,100500.0,100490.0,0.55213016]
[1737956044230,0.47807098,100500.0,100490.0,0.55213016]
[1737956044590,0.47707098,100500.0,100490.0,0.55213016]
[1737956045347,0.47807098,100500.0,100490.0,0.57513016]
[1737956045760,0.47707098,100500.0,100490.0,0.57513016]
[1737956045963,0.57707098,100500.0,100490.0,0.87253016]
[1737956051033,0.57707098,100500.0,100490.0,0.85253016]
[1737956051263,0.57707098,100500.0,100490.0,0.87253016]
[1737956052090,0.57707098,100500.0,100490.0,0.76871244]
[1737956052298,0.57707098,100500.0,100490.0,0.74871244]
[1737956052697,0.57707098,100500.0,100490.0,0.76871244]
[1737956053460,0.57707098,100500.0,100490.0,0.74871244]
[1737956054447,0.57707098,100500.0,100490.0,0.76871244]
[1737956054790,0.57707098,100500.0,100490.0,0.74871244]
[1737956055203,0.57707098,100500.0,100490.0,0.75871244]
[1737956055915,0.57707098,100500.0,100490.0,0.73871244]
[1737956056185,0.57707098,100500.0,100490.0,0.64136515]
[1737956056393,0.57707098,100500.0,100490.0,0.66136515]
[1737956056551,0.57707098,100500.0,100490.0,0.64136515]
[1737956056757,0.57707098,100500.0,100490.0,0.66136515]
[1737956057972,0.57707098,100500.0,100490.0,0.76518287]
[1737956059222,0.57707098,100500.0,100490.0,0.49136515]
[1737956061077,0.57707098,100500.0,100490.0,0.59518287]
[1737956063536,0.57707098,100500.0,100490.0,0.69253016]
[1737956063758,0.57707098,100500.0,100490.0,0.70253016]
[1737956063967,0.57707098,100500.0,100490.0,0.87553016]
[1737956064084,0.47707098,100500.0,100490.0,0.89553016]
[1737956064290,0.47707098,100500.0,100490.0,0.92662844]
[1737956065409,0.47707098,100500.0,100490.0,1.04862844]
[1737956067830,0.47925368,100500.0,100490.0,1.04862844]
[1737956068975,0.47925368,100500.0,100490.0,1.15244616]
[1737956069168,0.47925368,100500.0,100490.0,1.04862844]
[1737956069720,0.47925368,100500.0,100490.0,1.59022844]
[1737956072657,0.47925368,100500.0,100490.0,1.60974959]
[1737956073065,0.47925368,100500.0,100490.0,1.69921225]
[1737956073326,0.47925368,100500.0,100490.0,1.80302997]
[1737956073819,0.47925368,100500.0,100490.0,1.80202997]
[1737956074254,0.47925368,100500.0,100490.0,1.80702997]
[1737956074789,0.47925368,100500.0,100490.0,2.11032497]
[1737956076683,0.47925368,100500.0,100490.0,2.00462497]
[1737956076809,0.47925368,100500.0,100490.0,1.87682325]
[1737956077024,0.47925368,100500.0,100490.0,1.98064097]
[1737956077921,0.47925368,100500.0,100490.0,1.80702997]
[1737956078164,0.47925368,100500.0,100490.0,2.27888597]
[1737956078565,0.47925368,100500.0,100490.0,2.24550297]
[1737956080118,0.47925368,100500.0,100490.0,2.22510297]
[1737956080318,0.47925368,100500.0,100490.0,1.94386497]
[1737956080597,0.47925368,100500.0,100490.0,1.78662997]
[1737956080769,0.47925368,100500.0,100490.0,1.63631225]
[1737956080970,0.47925368,100500.0,100490.0,1.53781225]
[1737956081382,0.47925368,100500.0,100490.0,1.56081225]
[1737956081522,0.47925368,100500.0,100490.0,1.52971397]
[1737956081718,0.47925368,100500.0,100490.0,1.48719282]
[1737956081986,0.47925368,100500.0,100490.0,1.39773016]
[1737956082629,0.47925368,100500.0,100490.0,1.40073016]
[1737956082818,0.47925368,100500.0,100490.0,1.42073016]
[1737956084691,0.47925368,100500.0,100490.0,0.87913016]
[1737956086355,0.47925368,100500.0,100490.0,0.85913016]
[1737956086556,0.47925368,100500.0,100490.0,0.87913016]
[1737956087364,0.47925368,100500.0,100490.0,0.85913016]
[1737956087782,0.47925368,100500.0,100490.0,0.87913016]
[1737956087910,0.47925368,100500.0,100490.0,0.85913016]
[1737956088121,0.47925368,100500.0,100490.0,0.87913016]
[1737956089978,0.47425368,100500.0,100490.0,0.87913016]
[1737956091727,0.47425368,100500.0,100490.0,0.98294788]
[1737956092025,0.47425368,100500.0,100490.0,1.00173016]
[1737956092268,0.47425368,100500.0,100490.0,1.03275054]
[1737956092818,0.47425368,100500.0,100490.0,1.13656826]
[1737956096494,0.47425368,100500.0,100490.0,1.67816826]
[1737956097347,0.47425368,100500.0,100490.0,1.66367507]
[1737956097948,0.47425368,100500.0,100490.0,1.76749279]
[1737956098095,0.47425368,100500.0,100490.0,1.66367507]
[1737956099513,0.47425368,100500.0,100490.0,1.61707507]
[1737956101665,0.149194,100540.0,100490.0,1.61707507]
[1737956101666,0.06138,100560.0,100500.0,0.173]
[1737956101867,0.249197,100540.0,100530.0,0.299209]
[1737956102072,0.249197,100540.0,100530.0,0.4704]
[1737956102272,0.746537,100540.0,100530.0,0.4704]
[1737956102473,0.59734,100540.0,100530.0,0.619609]
[1737956103208,0.60648854,100540.0,100530.0,0.470609]
[1737956103461,0.50648854,100540.0,100530.0,0.620609]
[1737956103643,0.50648854,100540.0,100530.0,1.52019173]
[1737956104299,0.52502854,100540.0,100530.0,1.52019173]
[1737956104949,0.51602854,100540.0,100530.0,1.51919173]
[1737956105158,0.52002854,100540.0,100530.0,1.51919173]
[1737956105587,0.52202854,100540.0,100530.0,1.52019173]
[1737956105774,0.51602854,100540.0,100530.0,1.51919173]
[1737956106150,0.51602854,100540.0,100530.0,1.51948867]
[1737956106555,0.51602854,100540.0,100530.0,1.41567095]
[1737956106766,0.51602854,100540.0,100530.0,1.37281716]
[1737956106941,0.51602854,100540.0,100530.0,1.42581716]
[1737956107370,0.51602854,100540.0,100530.0,1.40581716]
[1737956108467,0.51602854,100540.0,100530.0,1.42581716]
[1737956109149,0.51602854,100540.0,100530.0,1.40581716]
[1737956109449,0.51602854,100540.0,100530.0,1.27546987]
[1737956109660,0.74362854,100540.0,100530.0,0.86229694]
[1737956109863,0.74362854,100540.0,100530.0,1.01150594]
[1737956110635,0.74662854,100540.0,100530.0,1.01150594]
[1737956111508,0.74762854,100540.0,100530.0,1.01150594]
[1737956114477,0.74762854,100540.0,100530.0,0.46990594]
[1737956115275,0.74762854,100540.0,100530.0,0.32069694]
[1737956116647,0.74762854,100540.0,100530.0,0.46990594]
[1737956117758,0.74762854,100540.0,100530.0,0.32069694]
[1737956118772,0.74762854,100540.0,100530.0,0.46990594]
[1737956120125,0.89416983,100540.0,100530.0,0.32069694]
[1737956122514,0.74497583,100540.0,100530.0,0.32069694]
[1737956123105,0.89416983,100540.0,100530.0,0.32069694]
[1737956123977,0.74497583,100540.0,100530.0,0.32069694]
[1737956124589,0.89416983,100540.0,100530.0,0.32069694]
[1737956126752,1.09529484,100540.0,100530.0,0.32069694]
[1737956127188,0.99794755,100540.0,100530.0,0.32069694]
[1737956127932,0.99694755,100540.0,100530.0,0.32069694]
[1737956128134,1.20184755,100540.0,100530.0,0.00029694]
[1737956128340,1.55161675,100540.0,100530.0,0.00029694]
[1737956128797,1.56061675,100540.0,100530.0,0.00129694]
[1737956128967,1.65796404,100540.0,100530.0,0.00129694]
[1737956130561,1.65396404,100540.0,100530.0,0.00129694]
[1737956130770,1.65696404,100540.0,100530.0,0.00129694]
[1737956131321,1.55961675,100540.0,100530.0,0.00129694]
[1737956131659,1.56825675,100540.0,100530.0,0.00129694]
[1737956132056,1.73376723,100540.0,100530.0,0.00129694]
[1737956133536,1.52886723,100540.0,100530.0,0.00129694]
[1737956133782,1.62886723,100540.0,100530.0,0.00129694]
[1737956134820,1.62022723,100540.0,100530.0,0.00129694]
[1737956135069,1.62886723,100540.0,100530.0,0.00129694]
[1737956135341,1.18009803,100540.0,100530.0,0.00129694]
[1737956135609,0.73698014,100540.0,100530.0,0.00129694]
[1737956135862,0.63099285,100540.0,100530.0,0.15050594]
[1737956137843,0.53099285,100540.0,100530.0,1.12850594]
[1737956139292,0.51899285,100540.0,100530.0,1.12750594]
[1737956139506,0.51899285,100540.0,100530.0,1.12850594]
[1737956139507,0.52699285,100540.0,100530.0,1.12850594]
[1737956139712,0.52099285,100540.0,100530.0,1.02750594]
[1737956139869,0.51899285,100540.0,100530.0,1.127209]
[1737956140065,0.52199285,100540.0,100530.0,1.127209]
[1737956140275,0.52299285,100540.0,100530.0,1.14313246]
[1737956140430,0.52299285,100540.0,100530.0,1.14342961]
[1737956140637,0.52313435,100540.0,100530.0,1.14342961]
[1737956145883,0.52313435,100540.0,100530.0,1.2407769]
[1737956145998,0.52313435,100540.0,100530.0,1.34459462]
[1737956146521,0.52313435,100540.0,100530.0,1.2407769]
[1737956146719,0.52213435,100540.0,100530.0,1.2407769]
[1737956147940,0.51913435,100540.0,100530.0,1.2407769]
[1737956148275,0.51913435,100540.0,100530.0,1.2417769]
[1737956150707,0.51913435,100540.0,100530.0,1.3917769]
[1737956150848,0.51913435,100540.0,100530.0,1.49559462]
[1737956151203,0.51913435,100540.0,100530.0,1.51559462]
[1737956151637,0.51913435,100540.0,100530.0,1.56289462]
[1737956157274,0.51913435,100540.0,100530.0,1.4390769]
[1737956157704,0.51913435,100540.0,100530.0,1.4590769]
[1737956159078,0.51913435,100540.0,100530.0,1.56289462]
[1737956159442,0.51913435,100540.0,100530.0,1.4590769]
[1737956159667,0.51913435,100540.0,100530.0,1.56289462]
[1737956159873,0.51913435,100540.0,100530.0,1.12511234]
[1737956161027,0.51903435,100540.0,100530.0,1.12511234]
[1737956163392,0.51903435,100540.0,100530.0,1.79704834]
[1737956163594,0.51903435,100540.0,100530.0,1.43742946]
[1737956163817,0.51903435,100540.0,100530.0,1.26908646]
[1737956164696,0.51903435,100540.0,100530.0,1.14494546]
[1737956164819,0.51903435,100540.0,100530.0,1.68654546]
[1737956165029,0.51903435,100540.0,100530.0,1.80941046]
[1737956169019,0.51903435,100540.0,100530.0,1.81041046]
[1737956169386,0.52003435,100540.0,100530.0,1.81741046]
[1737956170270,0.52003435,100540.0,100530.0,1.69454546]
[1737956170477,0.52003435,100540.0,100530.0,1.59072774]
[1737956170689,0.52003435,100540.0,100530.0,1.58072774]
[1737956170900,0.52003435,100540.0,100530.0,1.3037769]
[1737956171097,0.52003435,100540.0,100530.0,1.3137769]
[1737956171515,0.52003435,100540.0,100530.0,1.3367769]
[1737956171718,0.51903435,100540.0,100530.0,1.40859462]
[1737956172151,0.51903435,100540.0,100530.0,1.41259462]
[1737956172457,0.51903435,100540.0,100530.0,1.56329462]
[1737956175127,0.51903435,100540.0,100530.0,1.66711234]
[1737956175521,0.51903435,100540.0,100530.0,1.56329462]
[1737956175712,0.51903435,100540.0,100530.0,1.55329462]
[1737956175917,0.51903435,100540.0,100530.0,1.56329462]
[1737956178891,0.51903435,100540.0,100530.0,1.4594769]
[1737956179814,0.51903435,100540.0,100530.0,1.4104769]
[1737956179990,0.51903435,100540.0,100530.0,1.3317769]
[1737956184115,0.51903435,100540.0,100530.0,1.66311234]
[1737956184533,0.51903435,100540.0,100530.0,1.55929462]
[1737956187309,0.51903435,100540.0,100530.0,1.66311234]
[1737956187647,0.51903435,100540.0,100530.0,1.55929462]
[1737956187847,0.51903435,100540.0,100530.0,1.66311234]
[1737956188497,0.51494943,100540.0,100530.0,1.66311234]
[1737956190858,0.49505643,100540.0,100530.0,2.53331234]
[1737956191064,0.43537743,100540.0,100530.0,2.53331234]
[1737956191274,0.275064,100540.0,100530.0,2.53231234]
[1737956191481,0.276064,100540.0,100530.0,2.97589834]
[1737956191687,0.19961915,100540.0,100530.0,3.00684617]
[1737956191901,0.07043623,100540.0,100530.0,3.00684617]
[1737956192109,0.04533556,100540.0,100530.0,3.00684617]
[1737956192316,0.02544256,100540.0,100530.0,3.00684617]
[1737956192544,0.2212,100590.0,100580.0,0.149135]
[1737956192756,0.22169597,100590.0,100580.0,1.011135]
[1737956192975,0.62243117,100590.0,100580.0,1.011135]
[1737956194059,0.62543117,100590.0,100580.0,1.011135]
[1737956194592,0.62843117,100590.0,100580.0,1.012135]
[1737956194994,0.62543117,100590.0,100580.0,1.012135]
[1737956195202,0.62743117,100590.0,100580.0,1.012135]
[1737956195450,0.62443117,100590.0,100580.0,1.011135]
[1737956195652,0.62743117,100590.0,100580.0,1.011135]
[1737956197028,0.64597117,100590.0,100580.0,1.011135]
[1737956197440,0.64597117,100590.0,100580.0,1.11848229]
[1737956197960,0.64611267,100590.0,100580.0,1.11848229]
[1737956199343,0.64611267,100590.0,100580.0,1.13206237]
[1737956199779,0.57061267,100590.0,100580.0,1.13206237]
[1737956199992,0.52491267,100590.0,100580.0,1.42888009]
[1737956200227,0.52491267,100590.0,100580.0,1.61269781]
[1737956200436,0.52491267,100590.0,100580.0,1.50888009]
[1737956200855,0.52291267,100590.0,100580.0,1.50888009]
[1737956201061,0.51991267,100590.0,100580.0,1.19471508]
[1737956201288,0.51991267,100590.0,100580.0,1.161135]
[1737956201493,0.51991267,100590.0,100580.0,1.184135]
[1737956201693,0.51991267,100590.0,100580.0,1.181135]
[1737956202132,0.51991267,100590.0,100580.0,1.167135]
[1737956202370,0.51991267,100590.0,100580.0,1.161135]
[1737956202713,0.51991267,100590.0,100580.0,1.163135]
[1737956203410,0.51991267,100590.0,100580.0,1.183135]
[1737956203613,0.51991267,100590.0,100580.0,1.185135]
[1737956204025,0.51991267,100590.0,100580.0,1.183135]
[1737956204249,0.52191267,100590.0,100580.0,1.181135]
[1737956204452,0.52491267,100590.0,100580.0,1.181135]
[1737956204887,0.52191267,100590.0,100580.0,1.26848229]
[1737956205104,0.52491267,100590.0,100580.0,1.28848229]
[1737956205563,0.52191267,100590.0,100580.0,1.41530001]
[1737956205792,0.47291267,100590.0,100580.0,1.41530001]
[1737956206020,0.47340729,100590.0,100580.0,1.29148229]
[1737956206288,0.47440729,100590.0,100580.0,1.31148229]
[1737956206710,0.47440729,100590.0,100580.0,1.41530001]
[1737956208242,0.47440729,100590.0,100580.0,1.31148229]
[1737956209548,0.47440729,100590.0,100580.0,1.41530001]
[1737956209727,0.47440729,100590.0,100580.0,1.41559695]
[1737956210910,0.47440729,100590.0,100580.0,1.31177923]
[1737956214232,0.47440729,100590.0,100580.0,1.41559695]
[1737956214631,0.47440729,100590.0,100580.0,1.49359695]
[1737956222020,0.47440729,100590.0,100580.0,1.48359695]
[1737956222234,0.47440729,100590.0,100580.0,1.49359695]
[1737956222645,0.47440729,100590.0,100580.0,1.47359695]
[1737956222880,0.47440729,100590.0,100580.0,1.49359695]
[1737956223095,0.47440729,100590.0,100580.0,1.48359695]
[1737956223282,0.47440729,100590.0,100580.0,1.52447067]
[1737956224033,0.47440729,100590.0,100580.0,1.51447067]
[1737956224445,0.47440729,100590.0,100580.0,1.29177923]
[1737956224651,0.47440729,100590.0,100580.0,1.39559695]
[1737956225646,0.47440729,100590.0,100580.0,1.31177923]
[1737956226073,0.47440729,100590.0,100580.0,1.29177923]
[1737956226476,0.47440729,100590.0,100580.0,1.16143194]
[1737956226746,0.47440729,100590.0,100580.0,1.18143194]
[1737956227719,0.47440729,100590.0,100580.0,1.16143194]
[1737956227969,0.47440729,100590.0,100580.0,1.18143194]
[1737956229876,0.47440729,100590.0,100580.0,1.19143194]
[1737956230102,0.47440729,100590.0,100580.0,1.42559695]
[1737956232543,0.47440729,100590.0,100580.0,1.50189695]
[1737956233507,0.47440729,100590.0,100580.0,1.53281011]
[1737956233917,0.47440729,100590.0,100580.0,1.63662783]
[1737956234151,0.47440729,100590.0,100580.0,1.62662783]
[1737956234481,0.47440729,100590.0,100580.0,1.53281011]
[1737956235024,0.47340729,100590.0,100580.0,1.53281011]
[1737956235268,0.47340729,100590.0,100580.0,1.53581011]
[1737956235591,0.47440729,100590.0,100580.0,1.50489695]
[1737956236007,0.47340729,100590.0,100580.0,1.29477923]
[1737956236207,0.47340729,100590.0,100580.0,1.27177923]
[1737956236546,0.47340729,100590.0,100580.0,1.29177923]
[1737956237684,0.47340729,100590.0,100580.0,1.27177923]
[1737956237938,0.47340729,100590.0,100580.0,1.26877923]
[1737956238175,0.47340729,100590.0,100580.0,1.28877923]
[1737956238529,0.47340729,100590.0,100580.0,1.42559695]
[1737956239051,0.47440729,100590.0,100580.0,1.41559695]
[1737956239265,0.47440729,100590.0,100580.0,1.31177923]
[1737956239470,0.47340729,100590.0,100580.0,1.31177923]